bitfinex-derivatives/quotes_BTCF0:USTF0_20241103
["timestamp","ask_amount","ask_price","bid_price","bid_amount"]
[1730673027665,0.017,69140.0,69139.0,0.5778959]
[1730673027964,0.017,69140.0,69139.0,0.63573052]
[1730673028169,0.017,69140.0,69139.0,0.5778959]
[1730673030171,0.008,69140.0,69139.0,0.5778959]
[1730673030966,0.160377,69152.0,69150.0,0.065097]
[1730673031275,0.065097,69152.0,69150.0,0.065097]
[1730673031466,0.065097,69152.0,69151.0,0.065097]
[1730673032378,0.073097,69152.0,69151.0,0.065097]
[1730673032974,0.065097,69152.0,69151.0,0.065097]
[1730673033674,0.067097,69152.0,69151.0,0.065097]
[1730673033865,0.077097,69152.0,69151.0,0.065097]
[1730673034768,0.067097,69152.0,69151.0,0.065097]
[1730673035082,0.070097,69152.0,69151.0,0.065097]
[1730673035272,0.068097,69152.0,69151.0,0.065097]
[1730673035473,0.077097,69152.0,69151.0,0.065097]
[1730673035673,0.077097,69152.0,69151.0,0.10837581]
[1730673036061,0.068097,69152.0,69151.0,0.10837581]
[1730673036373,0.070097,69152.0,69151.0,0.10837581]
[1730673036571,0.070097,69152.0,69151.0,0.065097]
[1730673036772,0.077097,69152.0,69151.0,0.065097]
[1730673037476,0.076097,69152.0,69151.0,0.065097]
[1730673037670,0.074097,69152.0,69151.0,0.065097]
[1730673037866,0.083097,69152.0,69151.0,0.065097]
[1730673039079,0.082097,69152.0,69151.0,0.065097]
[1730673040073,0.073097,69152.0,69151.0,0.065097]
[1730673040269,0.083097,69152.0,69151.0,0.065097]
[1730673041268,0.083097,69152.0,69151.0,0.066097]
[1730673046583,0.018,69152.0,69151.0,0.066097]
[1730673051189,0.018,69152.0,69151.0,0.12380208]
[1730673054384,0.018,69152.0,69151.0,0.066097]
[1730673058683,0.083096,69152.0,69151.0,0.066097]
[1730673062487,0.083096,69152.0,69151.0,0.05888881]
[1730673062693,0.114696,69152.0,69151.0,0.05888881]
[1730673063500,0.114696,69152.0,69151.0,0.001]
[1730673071603,0.114696,69152.0,69151.0,0.04438949]
[1730673074107,0.114696,69152.0,69151.0,0.001]
[1730673077422,0.14623422,69152.0,69151.0,0.001]
[1730673079103,0.50703422,69152.0,69151.0,0.001]
[1730673079822,1.02294112,69152.0,69151.0,0.001]
[1730673080020,1.05947469,69152.0,69151.0,0.001]
[1730673080820,0.94049969,69152.0,69151.0,0.001]
[1730673081519,0.909336,69152.0,69151.0,0.001]
[1730673082122,0.97665663,69152.0,69151.0,0.001]
[1730673083714,0.94048786,69152.0,69151.0,0.001]
[1730673083914,1.2914029,69152.0,69151.0,0.001]
[1730673084117,0.065108,69140.0,69133.0,0.065]
[1730673084317,0.6031749,69140.0,69133.0,0.065]
[1730673085115,0.521108,69140.0,69133.0,0.1470669]
[1730673085314,0.065108,69140.0,69133.0,0.1470669]
[1730673085613,0.160268,69140.0,69139.0,0.0342]
[1730673086020,0.160268,69140.0,69139.0,0.0352]
[1730673088013,0.19949898,69140.0,69139.0,0.0352]
[1730673099618,0.28156588,69140.0,69139.0,0.0352]
[1730673106629,0.28156588,69140.0,69139.0,0.07859499]
[1730673107834,0.28156588,69140.0,69139.0,0.04839499]
[1730673108233,0.28156588,69140.0,69139.0,0.005]
[1730673108432,0.28156588,69140.0,69139.0,0.04839499]
[1730673108631,0.31229617,69140.0,69139.0,0.005]
[1730673111437,0.3122934,69140.0,69139.0,0.005]
[1730673115646,0.28156588,69140.0,69139.0,0.005]
[1730673119643,0.74569968,69140.0,69131.0,0.04339788]
[1730673119846,0.74569968,69140.0,69122.0,0.05784336]
[1730673119847,0.065124,69123.0,69122.0,0.05784336]
[1730673120047,0.065124,69123.0,69120.0,0.05784336]
[1730673120048,0.5379469,69123.0,69120.0,0.05784336]
[1730673120249,0.1471929,69121.0,69120.0,0.05784336]
[1730673120650,0.0820669,69121.0,69119.0,0.05784336]
[1730673120853,0.065126,69120.0,69119.0,0.05784336]
[1730673121441,0.065127,69119.0,69118.0,0.05784336]
[1730673121641,0.065128,69118.0,69117.0,0.06001333]
[1730673122752,0.065128,69118.0,69117.0,0.00216997]
[1730673123142,0.067128,69118.0,69117.0,0.00216997]
[1730673123763,0.162208,69118.0,69117.0,0.00216997]
[1730673123947,0.166208,69118.0,69117.0,0.00216997]
[1730673132253,0.071128,69118.0,69117.0,0.00216997]
[1730673132458,0.166248,69118.0,69117.0,0.00216997]
[1730673136269,0.071128,69118.0,69117.0,0.00216997]
[1730673136458,0.166248,69118.0,69117.0,0.00216997]
[1730673142170,0.162248,69118.0,69117.0,0.00216997]
[1730673142374,0.166248,69118.0,69117.0,0.00216997]
[1730673142968,0.162248,69118.0,69117.0,0.00216997]
[1730673143167,0.169248,69118.0,69117.0,0.00216997]
[1730673143563,0.167248,69118.0,69117.0,0.00216997]
[1730673143766,0.173248,69118.0,69117.0,0.00216997]
[1730673150687,0.173168,69118.0,69117.0,0.00216997]
[1730673151888,0.173168,69118.0,69116.0,0.0307]
[1730673152090,0.5079959,69117.0,69116.0,0.0307]
[1730673153397,0.5129959,69117.0,69116.0,0.0307]
[1730673155586,0.5189959,69117.0,69116.0,0.0307]
[1730673159705,0.4488669,69117.0,69114.0,0.05784336]
[1730673159894,0.065131,69115.0,69114.0,0.05784336]
[1730673160898,0.065137,69109.0,69108.0,0.3608]
[1730673162205,0.074137,69109.0,69108.0,0.3608]
[1730673162399,0.082137,69109.0,69108.0,0.3608]
[1730673171511,0.082137,69109.0,69108.0,0.41868239]
[1730673175908,0.082137,69109.0,69108.0,0.3608]
[1730673176616,0.082137,69109.0,69108.0,0.41868092]
[1730673176918,0.082137,69109.0,69108.0,0.3608]
[1730673177505,0.082137,69109.0,69108.0,0.41868112]
[1730673177706,0.177097,69109.0,69108.0,0.41868112]
[1730673181013,0.177097,69109.0,69108.0,0.3608]
[1730673181223,0.177097,69109.0,69108.0,0.41868259]
[1730673181423,0.177097,69109.0,69108.0,0.3608]
[1730673201434,0.20797715,69109.0,69108.0,0.3608]
[1730673202427,0.11301715,69109.0,69108.0,0.3608]
[1730673202622,0.20797715,69109.0,69108.0,0.3608]
[1730673203935,0.177097,69109.0,69108.0,0.3608]
[1730673204134,0.20797488,69109.0,69108.0,0.3608]
[1730673205935,0.177097,69109.0,69108.0,0.3608]
[1730673209236,0.177097,69109.0,69108.0,0.41872688]
[1730673212142,0.177097,69109.0,69108.0,0.3608]
[1730673213053,0.177097,69109.0,69108.0,0.41872554]
[1730673213651,0.177017,69109.0,69108.0,0.41872554]
[1730673214147,0.20823871,69109.0,69108.0,0.3608]
[1730673215539,0.11335871,69109.0,69108.0,0.3608]
[1730673215735,0.20823871,69109.0,69108.0,0.3608]
[1730673217364,0.065138,69108.0,69107.0,0.033]
[1730673217668,0.065138,69108.0,69104.0,0.3608]
[1730673217669,0.065141,69105.0,69104.0,0.3608]
[1730673217867,0.09636271,69105.0,69104.0,0.3608]
[1730673218653,0.09611961,69105.0,69104.0,0.3608]
[1730673219268,0.10011961,69105.0,69104.0,0.3608]
[1730673219470,0.10511961,69105.0,69104.0,0.3608]
[1730673220962,0.074141,69105.0,69104.0,0.3608]
[1730673225670,0.065143,69102.0,69101.0,0.09042554]
[1730673226872,0.068143,69102.0,69101.0,0.09042554]
[1730673227865,0.069143,69102.0,69101.0,0.09042554]
[1730673229078,0.069143,69102.0,69101.0,0.0325]
[1730673275006,0.09967506,69102.0,69101.0,0.0325]
[1730673275311,0.09947408,69102.0,69101.0,0.0325]
[1730673275507,0.09959935,69102.0,69101.0,0.0325]
[1730673275704,0.069143,69102.0,69101.0,0.0325]
[1730673280613,0.163863,69102.0,69101.0,0.0325]
[1730673280918,0.163863,69102.0,69101.0,0.05792246]
[1730673280919,0.1807869,69102.0,69101.0,0.05792246]
[1730673281125,0.2459299,69102.0,69101.0,0.05792246]
[1730673281921,0.2459299,69102.0,69100.0,0.15792246]
[1730673281922,0.065144,69101.0,69100.0,0.15792246]
[1730673283422,0.159864,69101.0,69100.0,0.15792246]
[1730673283623,0.161864,69101.0,69100.0,0.15792246]
[1730673286121,0.161864,69101.0,69100.0,0.1]
[1730673286725,0.522664,69101.0,69100.0,0.1]
[1730673292720,0.956824,69101.0,69100.0,0.1]
[1730673292928,1.019724,69101.0,69100.0,0.1]
[1730673296317,1.028724,69101.0,69100.0,0.1]
[1730673296517,0.594564,69101.0,69100.0,0.1]
[1730673297031,0.583564,69101.0,69100.0,0.1]
[1730673297225,0.591564,69101.0,69100.0,0.1]
[1730673297931,1.1077909,69101.0,69100.0,0.1]
[1730673298126,0.7539909,69101.0,69100.0,0.1]
[1730673298324,1.1147909,69101.0,69100.0,0.1]
[1730673298524,0.6806309,69101.0,69100.0,0.1]
[1730673298724,1.1147909,69101.0,69100.0,0.1]
[1730673298925,0.6806309,69101.0,69100.0,0.1]
[1730673299126,1.1067909,69101.0,69100.0,0.1]
[1730673299429,1.1127909,69101.0,69100.0,0.1]
[1730673299927,1.1047909,69101.0,69100.0,0.1]
[1730673300132,0.6766309,69101.0,69100.0,0.1]
[1730673301925,0.3158309,69101.0,69100.0,0.1]
[1730673302132,0.6766309,69101.0,69100.0,0.1]
[1730673303331,0.6706309,69101.0,69100.0,0.1]
[1730673303627,0.6786309,69101.0,69100.0,0.1]
[1730673303834,0.70854398,69101.0,69100.0,0.1]
[1730673304224,0.70654398,69101.0,69100.0,0.1]
[1730673304424,0.70154398,69101.0,69100.0,0.1]
[1730673304628,0.6462309,69101.0,69100.0,0.1]
[1730673305037,0.6392309,69101.0,69100.0,0.1]
[1730673305235,0.6442309,69101.0,69100.0,0.1]
[1730673305730,0.5190109,69101.0,69100.0,0.1]
[1730673305927,0.436944,69101.0,69100.0,0.1820669]
[1730673306135,0.531584,69101.0,69100.0,0.1820669]
[1730673306320,0.531584,69101.0,69100.0,0.1]
[1730673306521,0.436944,69101.0,69100.0,0.1]
[1730673306732,0.531584,69101.0,69100.0,0.1]
[1730673307034,0.436944,69101.0,69100.0,0.1]
[1730673307235,0.531584,69101.0,69100.0,0.1]
[1730673310636,0.436944,69101.0,69100.0,0.1]
[1730673310837,0.531584,69101.0,69100.0,0.1]
[1730673311531,0.436944,69101.0,69100.0,0.1]
[1730673311730,0.531584,69101.0,69100.0,0.1]
[1730673316235,0.170784,69101.0,69100.0,0.1]
[1730673318335,0.2528509,69101.0,69100.0,0.1]
[1730673318836,0.28273004,69101.0,69100.0,0.1]
[1730673319544,0.2528509,69101.0,69100.0,0.1]
[1730673319741,0.64349612,69101.0,69100.0,0.1]
[1730673321142,1.00429612,69101.0,69100.0,0.1]
[1730673322444,1.00417909,69101.0,69100.0,0.1]
[1730673324648,0.9744509,69101.0,69100.0,0.1]
[1730673329750,0.9684509,69101.0,69100.0,0.1]
[1730673330049,0.9794509,69101.0,69100.0,0.1]
[1730673330648,0.9844509,69101.0,69100.0,0.1]
[1730673331753,0.9724509,69101.0,69100.0,0.1]
[1730673331955,0.9824509,69101.0,69100.0,0.1]
[1730673332453,0.9804509,69101.0,69100.0,0.1]
[1730673332658,0.9784509,69101.0,69100.0,0.1]
[1730673333755,0.8838109,69101.0,69100.0,0.1]
[1730673333956,0.9783709,69101.0,69100.0,0.1]
[1730673340863,1.00790816,69101.0,69100.0,0.1]
[1730673341566,1.01290966,69101.0,69100.0,0.1]
[1730673342269,1.00190966,69101.0,69100.0,0.1]
[1730673342466,1.01190966,69101.0,69100.0,0.1]
[1730673342968,1.1294351,69101.0,69100.0,0.1]
[1730673344069,1.1194351,69101.0,69100.0,0.1]
[1730673344263,0.9528082,69101.0,69100.0,0.1]
[1730673344465,1.01190966,69101.0,69100.0,0.1]
[1730673344977,1.01290966,69101.0,69100.0,0.1]
[1730673345155,1.00390966,69101.0,69100.0,0.1]
[1730673345464,1.01390966,69101.0,69100.0,0.1]
[1730673345862,1.01290966,69101.0,69100.0,0.1]
[1730673347057,0.91734966,69101.0,69100.0,0.1]
[1730673347257,1.01190966,69101.0,69100.0,0.1]
[1730673347468,1.00790966,69101.0,69100.0,0.1]
[1730673347966,1.00390966,69101.0,69100.0,0.1]
[1730673348469,0.9743709,69101.0,69100.0,0.1]
[1730673353776,0.6135709,69101.0,69100.0,0.1]
[1730673362677,0.6135309,69101.0,69100.0,0.1]
[1730673363975,0.67893038,69101.0,69100.0,0.1]
[1730673368789,0.6791013,69101.0,69100.0,0.1]
[1730673370992,0.64364525,69101.0,69100.0,0.1]
[1730673371586,0.6135309,69101.0,69100.0,0.1]
[1730673378386,0.64366599,69101.0,69100.0,0.1]
[1730673379095,0.72356381,69101.0,69100.0,0.1]
[1730673381400,0.62904381,69101.0,69100.0,0.1]
[1730673381599,0.72356381,69101.0,69100.0,0.1]
[1730673382705,1.22884421,69101.0,69100.0,0.1]
[1730673384606,1.08436381,69101.0,69100.0,0.1]
[1730673385001,1.05684495,69101.0,69090.0,0.0312]
[1730673385200,0.5080209,69091.0,69090.0,0.0312]
[1730673385401,0.63267599,69091.0,69090.0,0.0312]
[1730673385808,0.27187599,69091.0,69090.0,0.0312]
[1730673385999,0.6025409,69091.0,69090.0,0.0312]
[1730673386507,0.6025409,69091.0,69090.0,0.07464552]
[1730673387003,0.6035409,69091.0,69090.0,0.07464552]
[1730673388196,0.2427409,69091.0,69090.0,0.07464552]
[1730673388393,0.6035409,69091.0,69090.0,0.0312]
[1730673389409,0.2427409,69091.0,69090.0,0.0312]
[1730673389611,0.6035409,69091.0,69090.0,0.0312]
[1730673391407,0.2427409,69091.0,69090.0,0.0312]
[1730673391613,0.6035409,69091.0,69090.0,0.0312]
[1730673392200,0.6034609,69091.0,69090.0,0.0312]
[1730673392711,0.64143949,69091.0,69090.0,0.0312]
[1730673396917,0.28063949,69091.0,69090.0,0.0312]
[1730673397103,0.64143949,69091.0,69090.0,0.0312]
[1730673397303,0.6712713,69091.0,69090.0,0.0312]
[1730673398310,0.6702713,69091.0,69090.0,0.0312]
[1730673398616,0.6712713,69091.0,69090.0,0.0312]
[1730673399115,0.6722713,69091.0,69090.0,0.0312]
[1730673399614,0.6752713,69091.0,69090.0,0.0312]
[1730673400315,0.6722713,69091.0,69090.0,0.0312]
[1730673400513,0.6752713,69091.0,69090.0,0.0312]
[1730673401616,0.64543949,69091.0,69090.0,0.0312]
[1730673402807,0.55099949,69091.0,69090.0,0.0312]
[1730673403010,0.64543949,69091.0,69090.0,0.0312]
[1730673403613,0.64543949,69091.0,69086.0,0.04344552]
[1730673403819,0.1472249,69087.0,69086.0,0.04344552]
[1730673405112,0.0820669,69087.0,69085.0,0.04344552]
[1730673405421,0.065159,69086.0,69085.0,0.04344552]
[1730673407920,0.0820669,69087.0,69084.0,0.04344552]
[1730673408126,0.065159,69085.0,69084.0,0.04344552]
[1730673408328,0.06516,69084.0,69083.0,0.0331]
[1730673411718,0.06616,69084.0,69083.0,0.0331]
[1730673412717,0.1606,69084.0,69083.0,0.0331]
[1730673416629,0.19925238,69084.0,69083.0,0.0331]
[1730673420029,0.19917238,69084.0,69083.0,0.0331]
[1730673425133,0.10481238,69084.0,69083.0,0.0331]
[1730673425429,0.19917238,69084.0,69083.0,0.0331]
[1730673427221,0.001,69084.0,69083.0,0.0331]
[1730673427419,0.001,69084.0,69083.0,0.19789503]
[1730673427830,0.001,69084.0,69083.0,0.28481175]
[1730673428725,0.001,69084.0,69083.0,0.19789503]
[1730673430333,0.001,69084.0,69083.0,0.28481175]
[1730673430531,0.001,69084.0,69083.0,0.19789503]
[1730673431628,0.001,69084.0,69083.0,0.098261]
[1730673432742,0.001,69084.0,69083.0,0.459061]
[1730673436628,0.06616,69084.0,69083.0,0.459061]
[1730673438232,0.06616,69084.0,69083.0,0.425961]
[1730673439326,0.06616,69084.0,69083.0,0.3608]
[1730673439635,0.06616,69084.0,69083.0,0.4186543]
[1730673441938,0.06616,69084.0,69083.0,0.3608]
[1730673444437,0.001,69084.0,69082.0,0.0578543]
[1730673444640,0.065161,69083.0,69082.0,0.0578543]
[1730673445736,0.068161,69083.0,69082.0,0.0578543]
[1730673446541,0.065162,69082.0,69081.0,0.065163]
[1730673448138,0.1472289,69082.0,69081.0,0.065163]
[1730673448435,0.1582289,69082.0,69081.0,0.065163]
[1730673448643,0.1682289,69082.0,69081.0,0.065163]
[1730673451942,0.1682289,69082.0,69079.0,0.10394915]
[1730673451943,0.065164,69080.0,69079.0,0.10394915]
[1730673452141,0.065164,69080.0,69079.0,0.0316]
[1730673453136,0.073164,69080.0,69079.0,0.0316]
[1730673454439,0.082164,69080.0,69079.0,0.0316]
[1730673455635,0.078164,69080.0,69079.0,0.0316]
[1730673455838,0.073164,69080.0,69079.0,0.0316]
[1730673457246,0.065165,69079.0,69078.0,0.04341284]
[1730673457447,0.008,69080.0,69076.0,0.065167]
[1730673457649,0.006,69080.0,69076.0,0.065167]
[1730673457837,0.01,69080.0,69076.0,0.065167]
[1730673458235,0.006,69080.0,69076.0,0.065167]
[1730673458434,0.014,69079.0,69076.0,0.065167]
[1730673458743,0.065167,69077.0,69076.0,0.065167]
[1730673461241,0.073167,69077.0,69076.0,0.065167]
[1730673461639,0.082167,69077.0,69076.0,0.23653855]
[1730673462644,0.082167,69077.0,69076.0,0.13751998]
[1730673463041,0.082167,69077.0,69076.0,0.23661587]
[1730673463238,0.082167,69077.0,69076.0,0.13751998]
[1730673463540,0.082167,69077.0,69076.0,0.23662228]
[1730673463734,0.082167,69077.0,69076.0,0.13751998]
[1730673464040,0.083167,69077.0,69076.0,0.23663018]
[1730673464645,0.084167,69077.0,69076.0,0.23663018]
[1730673464851,0.084167,69077.0,69076.0,0.1642772]
[1730673465649,0.084167,69077.0,69076.0,0.16425011]
[1730673468755,0.084167,69077.0,69076.0,0.065167]
[1730673476751,0.084167,69077.0,69076.0,0.23665989]
[1730673480249,0.084167,69077.0,69076.0,0.065167]
[1730673490166,0.084167,69077.0,69076.0,0.10863592]
[1730673490756,0.084167,69077.0,69076.0,0.065167]
[1730673491561,0.084167,69077.0,69076.0,0.10863653]
[1730673491763,0.084167,69077.0,69076.0,0.1639245]
[1730673492262,0.084167,69077.0,69076.0,0.13761974]
[1730673494257,0.084167,69077.0,69076.0,0.065167]
[1730673507972,0.065168,69076.0,69075.0,0.43525274]
[1730673508271,0.065168,69076.0,69075.0,0.53201495]
[1730673508473,0.159408,69076.0,69075.0,0.53201495]
[1730673509170,0.162408,69076.0,69075.0,0.53201495]
[1730673510674,0.162408,69076.0,69075.0,0.43325274]
[1730673512189,0.163408,69076.0,69075.0,0.43325274]
[1730673513075,0.162408,69076.0,69075.0,0.43325274]
[1730673514667,0.20083843,69076.0,69075.0,0.43325274]
[1730673515966,0.19883843,69076.0,69075.0,0.3608]
[1730673516171,0.20883843,69076.0,69075.0,0.3608]
[1730673516881,0.20983843,69076.0,69075.0,0.3608]
[1730673517670,0.20883843,69076.0,69075.0,0.3608]
[1730673517872,0.21783843,69076.0,69075.0,0.3608]
[1730673518670,0.20983843,69076.0,69075.0,0.3608]
[1730673518876,0.20083843,69076.0,69075.0,0.3608]
[1730673519077,0.20983843,69076.0,69075.0,0.3608]
[1730673519776,0.21683843,69076.0,69075.0,0.3608]
[1730673522080,0.20683843,69076.0,69075.0,0.3608]
[1730673522384,0.21683843,69076.0,69075.0,0.3608]
[1730673524180,0.21683843,69076.0,69072.0,0.04346372]
[1730673524373,0.21683843,69076.0,69071.0,0.0325]
[1730673524374,0.065172,69072.0,69071.0,0.07596372]
[1730673525778,0.065172,69072.0,69071.0,0.0325]
[1730673526185,0.073172,69072.0,69071.0,0.0325]
[1730673526381,0.080172,69072.0,69071.0,0.0325]
[1730673526582,0.080172,69072.0,69071.0,0.07596372]
[1730673527089,0.080172,69072.0,69071.0,0.0325]
[1730673528782,0.080172,69072.0,69071.0,0.10495274]
[1730673529289,0.080172,69072.0,69071.0,0.0325]
[1730673529780,0.080172,69072.0,69071.0,0.10495274]
[1730673530177,0.080172,69072.0,69071.0,0.0325]
[1730673531184,0.080172,69072.0,69071.0,0.10495274]
[1730673532489,0.080172,69072.0,69071.0,0.07245274]
[1730673532787,0.065192,69051.0,69050.0,0.1639]
[1730673533088,0.5370269,69051.0,69039.0,0.0308]
[1730673533287,0.1472689,69040.0,69039.0,0.0308]
[1730673533475,0.2414289,69040.0,69039.0,0.0308]
[1730673534290,0.065209,69033.0,69029.0,0.065212]
[1730673534489,0.1472779,69030.0,69025.0,0.065216]
[1730673534678,0.09416,69029.0,69026.0,0.426014]
[1730673535084,0.1472779,69030.0,69026.0,0.3608]
[1730673535286,0.065214,69027.0,69026.0,0.3608]
[1730673535691,0.065214,69027.0,69026.0,0.426015]
[1730673535881,0.8818809,69027.0,69020.0,0.03801026]
[1730673536185,0.8818809,69027.0,69015.0,0.3608]
[1730673536186,0.065225,69016.0,69015.0,0.3608]
[1730673536486,0.2414519,69016.0,69015.0,0.3608]
[1730673537083,0.065233,69008.0,69006.0,0.0329]
[1730673537283,0.1472999,69007.0,69006.0,0.07119819]
[1730673537485,0.1472999,69007.0,69006.0,0.0329]
[1730673537793,0.159433,69007.0,69006.0,0.098134]
[1730673538178,0.2414999,69007.0,69006.0,0.098134]
[1730673538384,0.2414999,69007.0,69006.0,0.03856607]
[1730673538385,0.1762669,69007.0,69006.0,0.03856607]
[1730673538580,0.6082999,69007.0,69000.0,0.2]
[1730673538786,0.1473059,69001.0,69000.0,0.2]
[1730673539284,0.5901728,69001.0,69000.0,0.2]
[1730673540186,1.0417607,69001.0,68979.0,0.3608]
[1730673540495,1.0417607,69001.0,68981.0,0.065258]
[1730673540496,0.0820669,68982.0,68981.0,0.065258]
[1730673541192,0.3608,69003.0,68981.0,0.43488]
[1730673541394,0.09416,68998.0,68996.0,0.065243]
[1730673541695,0.159402,68998.0,68997.0,0.096143]
[1730673542085,0.07932803,68999.0,68998.0,0.065242]
[1730673542592,0.08032803,68999.0,68998.0,0.065242]
[1730673542783,0.17448803,68999.0,68998.0,0.065242]
[1730673543702,0.08032803,68999.0,68998.0,0.065242]
[1730673543884,0.23872903,68999.0,68998.0,0.065242]
[1730673544597,0.18148803,68999.0,68998.0,0.065242]
[1730673544785,0.08732803,68999.0,68998.0,0.065242]
[1730673544981,0.10216,68999.0,68998.0,0.065242]
[1730673545185,0.09416,68999.0,68996.0,0.065243]
[1730673545388,0.09416,68999.0,68998.0,0.065242]
[1730673545984,0.10216,68999.0,68998.0,0.065242]
[1730673546796,0.11016,68999.0,68998.0,0.065242]
[1730673547198,0.05937985,68999.0,68998.0,0.065242]
[1730673547495,0.06737985,68999.0,68998.0,0.065242]
[1730673547887,0.11116,68999.0,68998.0,0.065242]
[1730673548094,0.017,68999.0,68998.0,0.065242]
[1730673548397,0.11116,68999.0,68998.0,0.065242]
[1730673548602,0.10316,68999.0,68998.0,0.065242]
[1730673549300,0.10216,68999.0,68998.0,0.065242]
[1730673549598,0.11116,68999.0,68998.0,0.065242]
[1730673549989,0.10316,68999.0,68995.0,0.0318]
[1730673550297,0.176401,68999.0,68998.0,0.066242]
[1730673550692,0.175401,68999.0,68998.0,0.066242]
[1730673550887,0.11016,68999.0,68998.0,0.066242]
[1730673551098,0.015,68999.0,68998.0,0.428042]
[1730673551299,0.12534592,69012.0,69011.0,0.065229]
[1730673551501,0.12534592,69018.0,69014.0,0.065226]
[1730673551708,0.09633509,69015.0,69014.0,0.065226]
[1730673552403,0.00217509,69015.0,69014.0,0.065226]
[1730673552892,0.16156109,69015.0,69014.0,0.065226]
[1730673553394,0.09633509,69015.0,69014.0,0.065226]
[1730673553897,0.00217509,69015.0,69014.0,0.065226]
[1730673554300,0.00217509,69015.0,69014.0,0.066226]
[1730673554601,0.00217509,69015.0,69014.0,0.098526]
[1730673554896,0.00817509,69015.0,69014.0,0.098526]
[1730673555094,0.01317509,69015.0,69014.0,0.098526]
[1730673555800,0.00817509,69015.0,69014.0,0.098526]
[1730673556003,0.01117509,69015.0,69014.0,0.098526]
[1730673556895,0.00517509,69015.0,69014.0,0.099526]
[1730673557901,0.00217509,69015.0,69014.0,0.099526]
[1730673558105,0.00517509,69015.0,69014.0,0.099526]
[1730673558603,0.065218,69024.0,69014.0,0.099526]
[1730673558798,0.09416,69023.0,69022.0,0.426018]
[1730673559007,0.21950592,69023.0,69022.0,0.426018]
[1730673560600,0.09416,69023.0,69022.0,0.426018]
[1730673560804,0.10016,69023.0,69022.0,0.427018]
[1730673561005,0.006,69023.0,69022.0,0.427018]
[1730673561303,0.012,69023.0,69022.0,0.428018]
[1730673561893,0.005,69023.0,69022.0,0.426018]
[1730673562091,0.009,69023.0,69022.0,0.426018]
[1730673562805,0.01,69023.0,69022.0,0.427018]
[1730673563504,0.006,69023.0,69022.0,0.427018]
[1730673563803,0.012,69023.0,69022.0,0.428018]
[1730673564189,0.006,69023.0,69022.0,0.428018]
[1730673564593,0.09416,69028.0,69027.0,0.065214]
[1730673565591,0.3608,69030.0,69029.0,0.065212]
[1730673565901,0.45496,69030.0,69029.0,0.065212]
[1730673567593,0.46096,69030.0,69029.0,0.066212]
[1730673568506,0.46696,69030.0,69029.0,0.067212]
[1730673568694,0.3728,69030.0,69029.0,0.067212]
[1730673568895,0.468,69030.0,69029.0,0.067212]
[1730673569503,0.3728,69030.0,69029.0,0.067212]
[1730673569698,0.012,69030.0,69029.0,0.428012]
[1730673569899,0.1072,69030.0,69029.0,0.428012]
[1730673570405,0.012,69030.0,69029.0,0.428012]
[1730673570605,0.1072,69030.0,69029.0,0.428012]
[1730673572201,0.012,69030.0,69029.0,0.428012]
[1730673587617,0.09423445,69030.0,69029.0,0.428012]
[1730673587921,0.012,69030.0,69029.0,0.428012]
[1730673588214,0.012,69030.0,69029.0,0.067212]
[1730673588517,0.012,69030.0,69029.0,0.524412]
[1730673588714,0.077211,69030.0,69029.0,0.524412]
[1730673589721,0.10738891,69030.0,69029.0,0.524412]
[1730673592026,0.20258891,69030.0,69029.0,0.524412]
[1730673592523,0.28482336,69030.0,69029.0,0.524412]
[1730673593023,0.18962336,69030.0,69029.0,0.524412]
[1730673593212,0.28482336,69030.0,69029.0,0.524412]
[1730673594710,0.20258891,69030.0,69029.0,0.524412]
[1730673595725,0.28482336,69030.0,69029.0,0.3628]
[1730673596715,0.25464545,69030.0,69029.0,0.3628]
[1730673598026,0.25464545,69030.0,69029.0,0.002]
[1730673602124,0.15944545,69030.0,69029.0,0.002]
[1730673602324,0.25432545,69030.0,69029.0,0.002]
[1730673606139,0.25432545,69030.0,69029.0,0.067212]
[1730673606632,0.15944545,69030.0,69029.0,0.067212]
[1730673606829,0.25432545,69030.0,69029.0,0.067212]
[1730673608234,0.61512545,69030.0,69029.0,0.067212]
[1730673608537,0.61512545,69030.0,69029.0,0.002]
[1730673608538,0.52024545,69030.0,69029.0,0.002]
[1730673608831,0.61512545,69030.0,69029.0,0.002]
[1730673610029,0.52024545,69030.0,69029.0,0.002]
[1730673610240,0.61512545,69030.0,69029.0,0.002]
[1730673611334,0.52024545,69030.0,69029.0,0.002]
[1730673611541,0.61512545,69030.0,69029.0,0.002]
[1730673611839,0.64505128,69030.0,69029.0,0.002]
[1730673612234,0.64505117,69030.0,69029.0,0.002]
[1730673613731,0.61512545,69030.0,69029.0,0.002]
[1730673616438,0.52024545,69030.0,69029.0,0.002]
[1730673616638,0.61512545,69030.0,69029.0,0.002]
[1730673618931,0.52024545,69030.0,69029.0,0.002]
[1730673619136,0.61512545,69030.0,69029.0,0.002]
[1730673623933,0.52024545,69030.0,69029.0,0.002]
[1730673624241,0.61512545,69030.0,69029.0,0.002]
[1730673629335,0.52024545,69030.0,69029.0,0.002]
[1730673629651,0.61444545,69030.0,69029.0,0.002]
[1730673635147,0.52024545,69030.0,69029.0,0.002]
[1730673635457,0.61444545,69030.0,69029.0,0.002]
[1730673639058,1.1312799,69030.0,69028.0,0.05801136]
[1730673639248,1.1312799,69030.0,69024.0,0.05801136]
[1730673639249,0.5990689,69029.0,69024.0,0.05801136]
[1730673639555,0.5990689,69029.0,69023.0,0.0329]
[1730673639556,0.065217,69024.0,69023.0,0.0329]
[1730673639746,0.065217,69024.0,69021.0,0.05801136]
[1730673639952,0.426019,69022.0,69021.0,0.05801136]
[1730673640358,0.06522,69021.0,69020.0,0.05801136]
[1730673640550,0.14745445,69021.0,69020.0,0.05801136]
[1730673641052,0.065221,69020.0,69019.0,0.05801136]